fUST/lending_fUST_20250722
["ID","MTS","AMOUNT","RATE_DAILY","PERIOD"]
[374011002,1753180244377,-460.0,0.00020145,2]
[374011004,1753180244387,-460.0,0.00020146,2]
[374011006,1753180244396,-460.0,0.00020146,2]
[374011008,1753180244406,-460.0,0.00020146,2]
[374011010,1753180244416,-460.0,0.00020146,2]
[374011013,1753180244426,-460.0,0.00020146,2]
[374011014,1753180244436,-460.0,0.00020146,2]
[374011016,1753180244445,-539.15,0.00020146,2]
[374011018,1753180244456,-460.0,0.00020146,2]
[374011020,1753180244466,-628.67,0.00020146,2]
[374011023,1753180244475,-460.0,0.00020146,2]
[374011024,1753180244485,-3556.47,0.00020146,2]
[374011026,1753180244496,-481.69,0.00020146,2]
[374011029,1753180244506,-460.0,0.00020146,2]
[374011030,1753180244515,-986.68,0.00020146,2]
[374011033,1753180244529,-692.03,0.00020146,2]
[374011035,1753180244538,-460.0,0.00020147,2]
[374011037,1753180244547,-489.5,0.00020147,2]
[374011038,1753180244557,-499.65,0.00020148,2]
[374011041,1753180244567,-1802.13,0.00020148,2]
[374011042,1753180244576,-723.84,0.00020148,2]
[374011044,1753180244586,-1228.66,0.0002015,2]
[374011046,1753180244595,-1453.67,0.0002015,2]
[374011049,1753180244606,-706.92,0.0002015,2]
[374011051,1753180244616,-251.21080644,0.00020321,2]
[374011053,1753180244626,-563.36,0.00020321,2]
[374011055,1753180244635,-5663.77431747,0.00020383,3]
[374011057,1753180244644,-214.6393183,0.0002039,3]
[374011059,1753180244654,-12619.94447631,0.0002039,3]
[374011061,1753180244663,-476.60259688,0.0002039,3]
[374011063,1753180244673,-160.0,0.0002039,3]
[374011065,1753180244683,-570.9949222,0.000204,2]
[374011067,1753180244692,-241.9251239,0.00020419,2]
[374011069,1753180244702,-460.0,0.00020419,2]
[374011071,1753180244712,-1826.65,0.00020419,2]
[374011073,1753180244722,-1131.47,0.00020419,2]
[374011075,1753180244731,-523.03,0.00020419,2]
[374011077,1753180244743,-2232.67,0.00020419,2]
[374011079,1753180244752,-953.91,0.00020419,2]
[374011081,1753180244761,-460.0,0.00020419,2]
[374011083,1753180244772,-460.0,0.0002042,2]
[374011085,1753180244781,-460.0,0.0002042,2]
[374011087,1753180244791,-460.0,0.0002042,2]
[374011089,1753180244800,-460.0,0.0002042,2]
[374011091,1753180244810,-599.00652439,0.0002042,2]
[374011093,1753180244819,-460.0,0.0002042,2]
[374011095,1753180244828,-539.15,0.0002042,2]
[374011097,1753180244838,-512.73249376,0.0002042,2]
[374011099,1753180244849,-628.67,0.0002042,2]
[374011101,1753180244868,-460.0,0.0002042,2]
[374011103,1753180244880,-3556.47,0.0002042,2]
[374011105,1753180244890,-481.69,0.0002042,2]
[374011107,1753180244899,-460.0,0.0002042,2]
[374011109,1753180244909,-986.68,0.0002042,2]
[374011111,1753180244919,-692.03,0.0002042,2]
[374011113,1753180244929,-460.0,0.00020421,2]
[374011115,1753180244938,-489.5,0.00020421,2]
[374011117,1753180244948,-499.65,0.00020422,2]
[374011119,1753180244958,-1802.13,0.00020422,2]
[374011121,1753180244968,-723.84,0.00020422,2]
[374011123,1753180244978,-360.0,0.00020422,2]
[374011125,1753180244989,-1228.66,0.00020424,2]
[374011127,1753180244999,-1453.67,0.00020424,2]
[374011129,1753180245008,-706.92,0.00020424,2]
[374011131,1753180245018,-563.36,0.00020595,2]
[374011133,1753180245027,-151.0,0.000206,4]
[374011135,1753180245036,-5663.77431747,0.00020659,3]
[374011136,1753180245045,-460.0,0.00020693,2]
[374011139,1753180245056,-1826.65,0.00020693,2]
[374011141,1753180245065,-1131.47,0.00020693,2]
[374011143,1753180245075,-523.03,0.00020693,2]
[374011145,1753180245084,-2232.67,0.00020693,2]
[374011147,1753180245094,-953.91,0.00020693,2]
[374011156,1753180245168,-460.0,0.00020693,2]
[374011158,1753180245183,-154.65473086,0.00020694,2]
[374011160,1753180245192,-460.0,0.00020694,2]
[374011162,1753180245201,-364.81426479,0.00020694,2]
[374011164,1753180245217,-460.0,0.00020694,2]
[374011167,1753180245231,-460.0,0.00020694,2]
[374011169,1753180245243,-539.15,0.00020694,2]
[374011171,1753180245253,-628.67,0.00020694,2]
[374011173,1753180245263,-460.0,0.00020694,2]
[374011175,1753180245274,-3556.47,0.00020694,2]
[374011177,1753180245284,-481.69,0.00020694,2]
[374011179,1753180245294,-460.0,0.00020694,2]
[374011181,1753180245303,-986.68,0.00020694,2]
[374011183,1753180245314,-692.03,0.00020694,2]
[374011185,1753180245323,-274.23904119,0.00020695,2]
[374011187,1753180245334,-489.5,0.00020695,2]
[374011190,1753180245344,-151.0,0.00020695,2]
[374011192,1753180245354,-151.0,0.00020695,2]
[374011194,1753180245365,-499.65,0.00020696,2]
[374011196,1753180245375,-1802.13,0.00020696,2]
[374011198,1753180245385,-723.84,0.00020696,2]
[374011200,1753180245395,-500.0,0.00020697,2]
[374011202,1753180245405,-1228.66,0.00020698,2]
[374011204,1753180245415,-1453.67,0.00020698,2]
[374011206,1753180245424,-706.92,0.00020698,2]
[374011208,1753180245434,-178.80003706,0.00020761,2]
[374011210,1753180245444,-837.473,0.00020761,2]
[374011212,1753180245454,-5000.0,0.00020818,2]
[374011214,1753180245463,-500.0,0.0002082,2]
[374011216,1753180245474,-500.0,0.0002082,2]
[374011218,1753180245483,-500.0,0.0002082,2]
[374011220,1753180245496,-437.60077437,0.0002082,2]
[374011222,1753180245506,-500.38964033,0.0002082,2]
[374011225,1753180245516,-500.0,0.0002082,2]
[374011227,1753180245526,-500.0,0.0002082,2]
[374011229,1753180245535,-500.0,0.0002082,2]
[374011231,1753180245545,-500.0,0.0002082,2]
[374011233,1753180245554,-500.0,0.0002082,2]
[374011235,1753180245564,-500.8524135,0.0002082,2]
[374011237,1753180245573,-500.0,0.0002082,2]
[374011239,1753180245584,-500.0,0.0002082,2]
[374011241,1753180245593,-500.0,0.0002082,2]
[374011243,1753180245603,-500.0,0.0002082,2]
[374011245,1753180245612,-500.0,0.0002082,2]
[374011247,1753180245621,-548.34048182,0.0002082,2]
[374011249,1753180245631,-500.50351289,0.0002082,2]
[374011251,1753180245641,-500.0,0.0002082,2]
[374011253,1753180245651,-500.0,0.0002082,2]
[374011255,1753180245660,-500.0,0.0002082,2]
[374011257,1753180245670,-500.0,0.0002082,2]
[374011259,1753180245680,-500.0,0.00020851,2]
[374011261,1753180245689,-563.36,0.00020869,2]
[374011263,1753180245699,-250.08867036,0.000209,2]
[374011265,1753180245710,-5663.77431747,0.00020934,4]
[374011267,1753180245719,-460.0,0.00020967,2]
[374011269,1753180245729,-1826.65,0.00020967,2]
[374011271,1753180245740,-1131.47,0.00020967,2]
[374011274,1753180245750,-523.03,0.00020967,2]
[374011276,1753180245760,-2232.67,0.00020967,2]
[374011278,1753180245770,-953.91,0.00020967,2]
[374011280,1753180245779,-460.0,0.00020967,2]
[374011282,1753180245788,-509.24539679,0.00020968,2]
[374011284,1753180245798,-460.0,0.00020968,2]
[374011286,1753180245807,-151.0,0.00020968,2]
[374011288,1753180245816,-151.0,0.00020968,2]
[374011290,1753180245826,-460.0,0.00020968,2]
[374011292,1753180245836,-539.15,0.00020968,2]
[374011294,1753180245845,-151.0,0.00020968,2]
[374011296,1753180245854,-151.0,0.00020968,2]
[374011298,1753180245863,-151.0,0.00020968,2]
[374011300,1753180245876,-628.67,0.00020968,2]
[374011302,1753180245887,-460.0,0.00020968,2]
[374011304,1753180245896,-3556.47,0.00020968,2]
[374011306,1753180245905,-481.69,0.00020968,2]
[374011308,1753180245917,-460.0,0.00020968,2]
[374011310,1753180245927,-986.68,0.00020968,2]
[374011312,1753180245936,-692.03,0.00020968,2]
[374011314,1753180245947,-151.0,0.00020968,2]
[374011316,1753180245956,-151.0,0.00020968,2]
[374011318,1753180245965,-489.5,0.00020969,2]
[374011320,1753180245975,-499.65,0.0002097,2]
[374011322,1753180245984,-1802.13,0.0002097,2]
[374011324,1753180245995,-723.84,0.0002097,2]
[374011326,1753180246005,-460.0,0.0002097,2]
[374011328,1753180246016,-1228.66,0.00020972,2]
[374011330,1753180246026,-1453.67,0.00020972,2]
[374011332,1753180246035,-706.92,0.00020972,2]
[374011334,1753180246045,-59133.5156306,0.00021,2]
[374011336,1753180246055,-542.83386234,0.00021,4]
[374011338,1753180246065,-500.3480752,0.0002103,2]
[374011340,1753180246075,-500.17276481,0.0002103,2]
[374011342,1753180246084,-500.0,0.0002103,2]
[374011344,1753180246094,-500.0,0.0002103,2]
[374011346,1753180246103,-500.0,0.0002103,2]
[374011348,1753180246113,-563.36,0.00021143,2]
[374011350,1753180246123,-1114.386798,0.00021143,2]
[374011352,1753180246133,-1114.386798,0.00021143,2]
[374011354,1753180246142,-151.0,0.00021188,2]
[374011356,1753180246153,-184.041169,0.00021188,2]
[374011358,1753180246163,-184.041169,0.00021188,2]
[374011360,1753180246173,-151.0,0.00021188,2]
[374011362,1753180246184,-151.0,0.00021188,2]
[374011364,1753180246193,-215.0738,0.00021188,2]
[374011366,1753180246203,-151.0,0.00021188,2]
[374011368,1753180246213,-151.0,0.00021188,2]
[374011370,1753180246222,-151.0,0.00021188,2]
[374011372,1753180246231,-151.0,0.00021188,2]
[374011373,1753180246241,-151.0,0.00021188,2]
[374011376,1753180246251,-151.0,0.00021188,2]
[374011378,1753180246261,-151.0,0.00021188,2]
[374011380,1753180246271,-151.0,0.00021188,2]
[374011382,1753180246281,-151.0,0.00021188,2]
[374011384,1753180246292,-151.0,0.00021188,2]
[374011386,1753180246301,-151.0,0.00021188,2]
[374011388,1753180246310,-151.0,0.00021188,2]
[374011390,1753180246319,-151.0,0.00021188,2]
[374011392,1753180246329,-151.0,0.00021188,2]
[374011394,1753180246338,-151.0,0.00021188,2]
[374011396,1753180246348,-151.0,0.00021188,2]
[374011398,1753180246357,-151.0,0.00021188,2]
[374011400,1753180246367,-182.00579184,0.00021188,2]
[374011402,1753180246377,-25000.0,0.00021188,2]
[374011404,1753180246388,-500.0,0.00021189,2]
[374011406,1753180246397,-500.0,0.00021189,2]
[374011416,1753180246486,-308.82850684,0.00021189,2]
[374011418,1753180246498,-500.0,0.00021189,2]
[374011420,1753180246508,-5663.77431747,0.0002121,4]
[374011422,1753180246519,-460.0,0.00021241,2]
[374011424,1753180246528,-1826.65,0.00021241,2]
[374011426,1753180246537,-1131.47,0.00021241,2]
[374011428,1753180246547,-523.03,0.00021241,2]
[374011430,1753180246556,-1681.02393868,0.00021241,2]
[374011443,1753180246681,-551.64606132,0.00021241,2]
[374011445,1753180246691,-11.14156978,0.00021241,2]
[374011448,1753180246703,-283.85756455,0.00021241,2]
[374011450,1753180246715,-658.91086567,0.00021241,2]
[374011452,1753180246725,-460.0,0.00021241,2]
[374011454,1753180246734,-460.0,0.00021242,2]
[374011456,1753180246748,-460.0,0.00021242,2]
[374011458,1753180246757,-539.15,0.00021242,2]
[374011460,1753180246766,-628.67,0.00021242,2]
[374011462,1753180246775,-460.0,0.00021242,2]
[374011464,1753180246785,-3556.47,0.00021242,2]
[374011466,1753180246794,-481.69,0.00021242,2]
[374011468,1753180246803,-460.0,0.00021242,2]
[374011470,1753180246813,-986.68,0.00021242,2]
[374011472,1753180246822,-692.03,0.00021242,2]
[374011474,1753180246832,-24.27834979,0.00021243,2]
[374011476,1753180246843,-465.22165021,0.00021243,2]
[374011478,1753180246853,-499.65,0.00021244,2]
[374011480,1753180246863,-1802.13,0.00021244,2]
[374011482,1753180246874,-723.84,0.00021244,2]
[374011484,1753180246883,-1228.66,0.00021246,2]
[374011486,1753180246893,-766.67081009,0.00021246,2]
[374011489,1753180246904,-686.99918991,0.00021246,2]
[374011491,1753180246915,-706.92,0.00021246,2]
[374011493,1753180246924,-31.24264538,0.000213,3]
[374011495,1753180246936,-119.75735462,0.000213,3]
[374011497,1753180246945,-356.70346337,0.00021368,2]
[374011499,1753180246957,-705.69546518,0.00021368,2]
[374011501,1753180246966,-835.35905135,0.00021368,2]
[374011508,1753180247026,-3668.161915,0.00016758,2]
[374011511,1753180247038,-460.0,0.00016758,2]
[374011513,1753180247048,-424.2059313,0.00016758,2]
[374011515,1753180247060,-2559.33167337,0.00016758,2]
[374011517,1753180247069,-1808.37,0.00016856,2]
[374011519,1753180247078,-1808.37,0.0001713,2]
[374011521,1753180247087,-1808.37,0.00017404,2]
[374011523,1753180247097,-1808.37,0.00017678,2]
[374011525,1753180247106,-2805.68,0.00018506,2]
[374011526,1753180247116,-2805.68,0.0001878,2]
[374011528,1753180247125,-2805.68,0.00019054,2]
[374011530,1753180247135,-164.64094865,0.00021368,2]
[374011532,1753180247145,-500.0,0.00021368,2]
[374011533,1753180247154,-563.36,0.00021416,2]
[374011535,1753180247163,-5663.77431747,0.00021486,5]
[374011537,1753180247172,-460.0,0.00021515,2]
[374011539,1753180247182,-1826.65,0.00021515,2]
[374011541,1753180247191,-1131.47,0.00021515,2]
[374011542,1753180247201,-523.03,0.00021515,2]
[374011544,1753180247210,-2232.67,0.00021515,2]
[374011546,1753180247219,-953.91,0.00021515,2]
[374011548,1753180247229,-460.0,0.00021515,2]
[374011549,1753180247238,-250.0,0.00021515,2]
[374011551,1753180247250,-460.0,0.00021516,2]
[374011553,1753180247260,-460.0,0.00021516,2]
[374011555,1753180247269,-539.15,0.00021516,2]
[374011557,1753180247279,-628.67,0.00021516,2]
[374011559,1753180247289,-460.0,0.00021516,2]
[374011561,1753180247299,-3556.47,0.00021516,2]
[374011563,1753180247309,-481.69,0.00021516,2]
[374011564,1753180247321,-460.0,0.00021516,2]
[374011566,1753180247330,-986.68,0.00021516,2]
[374011568,1753180247340,-692.03,0.00021516,2]
[374011570,1753180247349,-489.5,0.00021517,2]
[374011572,1753180247359,-499.65,0.00021518,2]
[374011573,1753180247368,-1802.13,0.00021518,2]
[374011575,1753180247377,-723.84,0.00021518,2]
[374011577,1753180247387,-520.0,0.00021518,2]
[374011579,1753180247396,-227.61,0.00021519,2]
[374011581,1753180247405,-1228.66,0.0002152,2]
[374011582,1753180247415,-1453.67,0.0002152,2]
[374011584,1753180247424,-706.92,0.0002152,2]
[374011586,1753180247436,-575.75147067,0.00021543,2]
[374011588,1753180247446,-1000.0,0.00021578,2]
[374011590,1753180247455,-563.36,0.0002169,2]
[374011591,1753180247465,-5663.77431747,0.00021762,5]
[374011593,1753180247474,-460.0,0.00021789,2]
[374011595,1753180247484,-1826.65,0.00021789,2]
[374011597,1753180247495,-1131.47,0.00021789,2]
[374011599,1753180247505,-523.03,0.00021789,2]
[374011600,1753180247515,-2232.67,0.00021789,2]
[374011602,1753180247524,-953.91,0.00021789,2]
[374011604,1753180247533,-450.04,0.00021789,2]
[374011606,1753180247543,-151.0,0.0002179,2]
[374011613,1753180247552,-151.0,0.0002179,2]
[374011615,1753180247628,-151.492355,0.0002179,2]
[374011617,1753180247639,-151.0,0.0002179,2]
[374011619,1753180247648,-151.0,0.0002179,2]
[374011621,1753180247657,-665.146953,0.0002179,2]
[374011623,1753180247666,-665.146953,0.0002179,2]
[374011624,1753180247675,-460.0,0.0002179,2]
[374011626,1753180247685,-232.36,0.0002179,2]
[374011628,1753180247694,-539.15,0.0002179,2]
[374011630,1753180247704,-628.67,0.0002179,2]
[374011632,1753180247713,-460.0,0.0002179,2]
[374011634,1753180247722,-3556.47,0.0002179,2]
[374011636,1753180247731,-481.69,0.0002179,2]
[374011637,1753180247742,-460.0,0.0002179,2]
[374011638,1753180247752,-986.68,0.0002179,2]
[374011639,1753180247761,-692.03,0.0002179,2]
[374011640,1753180247770,-489.5,0.00021791,2]
[374011641,1753180247780,-499.65,0.00021792,2]
[374011642,1753180247789,-1802.13,0.00021792,2]
[374011643,1753180247798,-723.84,0.00021792,2]
[374011644,1753180247808,-1228.66,0.00021794,2]
[374011645,1753180247817,-1453.67,0.00021794,2]
[374011646,1753180247827,-706.92,0.00021794,2]
[374011647,1753180247836,-500.0,0.00021894,2]
[374011648,1753180247845,-278.67046961,0.000219,2]
[374011649,1753180247854,-500.0,0.00021916,2]
[374011650,1753180247863,-8638.60746861,0.00021916,2]
[374011888,1753180265929,-460.0,0.00016858,2]
[374011889,1753180265939,-1808.37,0.00017952,2]
[374011890,1753180265948,-2805.68,0.00019328,2]
[374011891,1753180265959,-2805.68,0.00019602,2]
[374011892,1753180265969,-2805.68,0.00019876,2]
[374011893,1753180265978,-63063.98916807,0.00021916,2]
[374011894,1753180265988,-1322.708121,0.00021918,7]
[374011895,1753180265998,-150.0,0.00021918,2]
[374011896,1753180266008,-200.76317979,0.00021918,2]
[374011897,1753180266017,-170.7,0.0002192,4]
[374011898,1753180266026,-563.36,0.00021964,2]
[374011899,1753180266036,-1282.89,0.00022,7]
[374011900,1753180266046,-3800.29,0.00022,7]
[374011901,1753180266055,-45302.8,0.00022,2]
[374011902,1753180266065,-2013.85594129,0.00022,2]
[374011903,1753180266075,-5663.77431747,0.00022038,6]
[374011904,1753180266084,-460.0,0.00022063,2]
[374011905,1753180266094,-1826.65,0.00022063,2]
[374011906,1753180266104,-1131.47,0.00022063,2]
[374011907,1753180266114,-523.03,0.00022063,2]
[374011908,1753180266124,-2232.67,0.00022063,2]
[374011909,1753180266133,-953.91,0.00022063,2]
[374011910,1753180266142,-452.76126345,0.00022064,2]
[374011911,1753180266151,-539.15,0.00022064,2]
[374011912,1753180266161,-628.67,0.00022064,2]
[374011913,1753180266171,-460.0,0.00022064,2]
[374011914,1753180266181,-3556.47,0.00022064,2]
[374011915,1753180266190,-481.69,0.00022064,2]
[374011916,1753180266200,-291.59122848,0.00022064,2]
[374011917,1753180266209,-986.68,0.00022064,2]
[374011918,1753180266218,-692.03,0.00022064,2]
[374011919,1753180266228,-489.5,0.00022065,2]
[374011920,1753180266237,-1802.13,0.00022066,2]
[374011921,1753180266247,-723.84,0.00022066,2]
[374011922,1753180266256,-1228.66,0.00022068,2]
[374011923,1753180266266,-151.0,0.00022068,7]
[374011924,1753180266276,-151.0,0.00022068,7]
[374011925,1753180266286,-1453.67,0.00022068,2]
[374011926,1753180266297,-151.0,0.00022068,7]
[374011927,1753180266307,-706.92,0.00022068,2]
[374011928,1753180266318,-237.33317,0.00022068,7]
[374011929,1753180266328,-151.0,0.00022085,7]
[374011930,1753180266337,-151.0,0.00022085,7]
[374011931,1753180266347,-151.0,0.00022085,7]
[374011932,1753180266356,-151.0,0.000221,7]
[374011933,1753180266366,-500.0,0.00022126,2]
[374011934,1753180266375,-12500.0,0.00022185,7]
[374011935,1753180266384,-3994.80170839,0.00022185,7]
[374011936,1753180266395,-12619.94447631,0.000222,7]
[374011937,1753180266404,-476.60259688,0.000222,7]
[374011938,1753180266413,-160.0,0.000222,7]
[374011939,1753180266423,-563.36,0.00022238,2]
[374011940,1753180266432,-2554.73293467,0.00022238,2]
[374011941,1753180266441,-5663.77431747,0.00022314,7]
[374011942,1753180266451,-1114.386798,0.00022314,7]
[374011943,1753180266460,-1114.386798,0.00022314,7]
[374011944,1753180266470,-460.0,0.00022337,2]
[374011945,1753180266479,-1826.65,0.00022337,2]
[374011946,1753180266488,-1131.47,0.00022337,2]
[374011947,1753180266497,-523.03,0.00022337,2]
[374011948,1753180266506,-2232.67,0.00022337,2]
[374011949,1753180266516,-953.91,0.00022337,2]
[374011950,1753180266526,-539.15,0.00022338,2]
[374011951,1753180266535,-628.67,0.00022338,2]
[374011952,1753180266544,-460.0,0.00022338,2]
[374011953,1753180266554,-3556.47,0.00022338,2]
[374011954,1753180266563,-481.69,0.00022338,2]
[374011955,1753180266573,-986.68,0.00022338,2]
[374011956,1753180266583,-692.03,0.00022338,2]
[374011957,1753180266593,-489.5,0.00022339,2]
[374011958,1753180266602,-1802.13,0.0002234,2]
[374011959,1753180266612,-723.84,0.0002234,2]
[374011960,1753180266622,-1228.66,0.00022342,2]
[374011961,1753180266633,-1453.67,0.00022342,2]
[374011962,1753180266643,-706.92,0.00022342,2]
[374011963,1753180266652,-199.15982696,0.0002244,4]
[374011964,1753180266662,-2867.34,0.00022465,2]
[374011965,1753180266671,-300.0,0.00022466,2]
[374011966,1753180266681,-50825.3083881,0.0002249,7]
[374011967,1753180266691,-563.36,0.00022512,2]
[374011968,1753180266701,-223.0315306,0.00022557,2]
[374011969,1753180266711,-523.44,0.00022568,6]
[374011970,1753180266720,-2554.73293467,0.0002257,2]
[374011971,1753180266730,-5663.77431747,0.0002259,7]
[374011972,1753180266740,-339.183509,0.00022603,2]
[374011973,1753180266750,-460.0,0.00022611,2]
[374011974,1753180266761,-1826.65,0.00022611,2]
[374011975,1753180266770,-1131.47,0.00022611,2]
[374011976,1753180266780,-523.03,0.00022611,2]
[374011977,1753180266790,-2232.67,0.00022611,2]
[374011978,1753180266799,-953.91,0.00022611,2]
[374011979,1753180266809,-539.15,0.00022612,2]
[374011980,1753180266820,-628.67,0.00022612,2]
[374011981,1753180266830,-460.0,0.00022612,2]
[374011982,1753180266840,-3556.47,0.00022612,2]
[374011983,1753180266850,-481.69,0.00022612,2]
[374011984,1753180266860,-986.68,0.00022612,2]
[374011985,1753180266870,-692.03,0.00022612,2]
[374011986,1753180266883,-489.5,0.00022613,2]
[374011987,1753180266892,-1802.13,0.00022614,2]
[374011988,1753180266902,-723.84,0.00022614,2]
[374011989,1753180266912,-151.0,0.00022616,7]
[374011990,1753180266922,-1228.66,0.00022616,2]
[374011991,1753180266931,-184.041169,0.00022616,7]
[374011992,1753180266940,-184.041169,0.00022616,7]
[374011993,1753180266950,-151.0,0.00022616,7]
[374011994,1753180266960,-151.0,0.00022616,7]
[374011995,1753180266970,-1453.67,0.00022616,2]
[374011996,1753180266980,-706.92,0.00022616,2]
[374011997,1753180266989,-523.44,0.00022668,2]
[374011998,1753180266999,-523.44,0.00022768,7]
[374011999,1753180267008,-563.36,0.00022786,2]
[374012000,1753180267018,-151.0,0.000228,7]
[374012001,1753180267028,-5663.77431747,0.00022866,8]
[374012002,1753180267038,-523.44,0.00022868,2]
[374012003,1753180267047,-450.19,0.00022885,2]
[374012004,1753180267057,-1826.65,0.00022885,2]
[374012005,1753180267068,-1131.47,0.00022885,2]
[374012006,1753180267077,-523.03,0.00022885,2]
[374012007,1753180267087,-2232.67,0.00022885,2]
[374012008,1753180267097,-953.91,0.00022885,2]
[374012009,1753180267106,-539.15,0.00022886,2]
[374012010,1753180267198,-628.67,0.00022886,2]
[374012011,1753180267209,-460.0,0.00022886,2]
[374012012,1753180267220,-3556.47,0.00022886,2]
[374012013,1753180267230,-481.69,0.00022886,2]
[374012014,1753180267240,-986.68,0.00022886,2]
[374012015,1753180267250,-692.03,0.00022886,2]
[374012016,1753180267260,-489.5,0.00022887,2]
[374012017,1753180267270,-1802.13,0.00022888,2]
[374012018,1753180267280,-723.84,0.00022888,2]
[374012019,1753180267290,-1228.66,0.0002289,2]
[374012020,1753180267299,-1453.67,0.0002289,2]
[374012021,1753180267309,-706.92,0.0002289,2]
[374012022,1753180267319,-2554.73293467,0.00022903,2]
[374012023,1753180267328,-67850.91137018,0.00022929,2]
[374012024,1753180267337,-523.44,0.00022968,4]
[374012025,1753180267347,-501.64639882,0.00022973,2]
[374012026,1753180267356,-500.0,0.00022988,2]
[374012027,1753180267365,-1566.82,0.00023,2]
[374012028,1753180267375,-839.90542673,0.00023,3]
[374012029,1753180267384,-160.0,0.00023,3]
[374012030,1753180267393,-215.80012421,0.00023,3]
[374012031,1753180267403,-160.0,0.00023,2]
[374012032,1753180267413,-15786.70581009,0.00023,10]
[374012033,1753180267422,-160.0,0.00023,3]
[374012034,1753180267432,-526.07605158,0.00023,3]
[374012035,1753180267442,-231.06963584,0.00023,3]
[374012036,1753180267451,-471.51787704,0.00023014,2]
[374012037,1753180267461,-563.36,0.0002306,2]
[374012038,1753180267470,-523.44,0.00023068,2]
[374012039,1753180267479,-45302.8,0.000231,2]
[374012040,1753180267489,-151.0,0.000231,7]
[374012041,1753180267498,-151.0,0.000231,7]
[374012042,1753180267508,-151.0,0.000231,7]
[374012043,1753180267517,-151.0,0.000231,7]
[374012044,1753180267526,-151.0,0.000231,7]
[374012045,1753180267536,-665.146953,0.000231,7]
[374012046,1753180267545,-665.146953,0.000231,7]
[374012047,1753180267555,-476.60259688,0.000231,7]
[374012048,1753180267564,-5663.77431747,0.00023141,8]
[374012049,1753180267574,-1826.83151848,0.00023159,2]
[374012050,1753180267583,-1131.69,0.00023159,2]
[374012051,1753180267593,-523.12422202,0.00023159,2]
[374012052,1753180267602,-2232.83454653,0.00023159,2]
[374012053,1753180267611,-954.10597662,0.00023159,2]
[374012054,1753180267621,-539.22076235,0.0002316,2]
[374012055,1753180267630,-628.88,0.0002316,2]
[374012056,1753180267639,-151.2,0.0002316,2]
[374012057,1753180267649,-3556.56,0.0002316,2]
[374012058,1753180267658,-481.75,0.0002316,2]
[374012059,1753180267668,-986.71,0.0002316,2]
[374012060,1753180267677,-692.05218506,0.0002316,2]
[374012061,1753180267687,-489.72295918,0.00023161,2]
[374012062,1753180267696,-1802.24,0.00023162,2]
[374012063,1753180267706,-723.96774719,0.00023162,2]
[374012064,1753180267716,-1228.73573166,0.00023164,2]
[374012065,1753180267725,-1453.72182696,0.00023164,2]
[374012066,1753180267735,-707.09659159,0.00023164,2]
[374012067,1753180267744,-523.44,0.00023168,2]
[374012068,1753180267753,-2554.73293467,0.00023235,2]
[374012069,1753180267764,-523.44,0.00023268,3]
[374012070,1753180267773,-1282.89,0.000233,7]
[374012071,1753180267783,-3800.29,0.000233,7]
[374012072,1753180267792,-563.36,0.00023334,2]